[Event "FIDE WCCC Open-12 2024"]
[Site "Montesilvano"]
[Date "2024.11.18"]
[Round "3.8"]
[White "Abdsattar, Alisher"]
[Black "Mamikonyan, Artem T"]
[Result "1-0"]
[ECO "B15"]
[WhiteElo "2082"]
[BlackElo "1918"]
[PlyCount "101"]
[EventDate "2024.11.18"]
[EventType "swiss"]
[EventCountry "ITA"]
[TimeControl "5400+30"]

1. e4 {[%emt 0:00:07]} c6 {[%emt 0:00:03]} 2. d4 {[%emt 0:00:16]} d5 {[%emt 0:00:04]} 3. Nc3 {[%emt 0:00:06]} dxe4 {[%emt 0:00:04]} 4. Nxe4 {[%emt 0:00:05]} Nf6 {[%emt 0:00:06]} 5. Nxf6+ {[%emt 0:00:29]} exf6 {[%emt 0:00:06]} 6. Bc4 {[%emt 0:00:18]} Bd6 {[%emt 0:00:08]} 7. Qe2+ {[%emt 0:00:16]} Kf8 {[%emt 0:03:10]} 8. Be3 {[%emt 0:05:16]} h5 {[%emt 0:01:32]} 9. Nf3 {[%emt 0:11:45]} Na6 {[%emt 0:01:36]} 10. O-O {[%emt 0:09:58]} Nb4 {[%emt 0:05:02]} 11. Rad1 {[%emt 0:04:31]} b5 {[%emt 0:16:24]} 12. Bb3 {[%emt 0:00:37]} Nd5 {[%emt 0:00:39]} 13. Bxd5 {[%emt 0:11:59]} cxd5 {[%emt 0:00:07]} 14. Ne1 {[%emt 0:00:06]} b4 {[%emt 0:05:57]} 15. Nd3 {[%emt 0:06:31]} Ba6 {[%emt 0:00:27]} 16. Qd2 {[%emt 0:01:03]} Qc7 {[%emt 0:00:24]} 17. h3 {[%emt 0:01:35]} Rc8 {[%emt 0:00:06]} 18. Rc1 {[%emt 0:00:10]} g5 {[%emt 0:18:51]} 19. c3 {[%emt 0:06:28]} bxc3 {[%emt 0:10:25]} 20. Rxc3 {[%emt 0:00:14]} Qd7 {[%emt 0:00:03]} 21. Rfc1 {[%emt 0:01:46]} Rxc3 {[%emt 0:00:16]} 22. Qxc3 {[%emt 0:01:10]} Kg7 {[%emt 0:03:02]} 23. Nc5 {[%emt 0:04:23]} Qb5 {[%emt 0:01:47]} 24. Nxa6 {[%emt 0:05:22]} Qxa6 {[%emt 0:00:07]} 25. Qc6 {[%emt 0:00:13]} Qxc6 {[%emt 0:00:05]} 26. Rxc6 {[%emt 0:00:03]} Rd8 {[%emt 0:00:03]} 27. Bd2 {[%emt 0:00:28]} g4 {[%emt 0:00:58]} 28. b4 {[%emt 0:01:52]} Rd7 {[%emt 0:06:58]} 29. b5 {[%emt 0:00:05]} Ba3 {[%emt 0:00:41]} 30. Bc3 {[%emt 0:03:15]} Rb7 {[%emt 0:00:20]} 31. Ra6 {[%emt 0:00:04]} Be7 {[%emt 0:00:07]} 32. a4 {[%emt 0:00:10]} f5 {[%emt 0:01:36]} 33. Kf1 {[%emt 0:04:09]} Bf6 {[%emt 0:01:47]} 34. Rd6 {[%emt 0:01:18]} Rc7 {[%emt 0:00:05]} 35. Bd2 {[%emt 0:04:39]} Rc4 {[%emt 0:04:33]} 36. Bh6+ {[%emt 0:01:48]} Kg6 {[%emt 0:00:27]} 37. h4 {[%emt 0:04:13]} Kxh6 {[%emt 0:01:14]} 38. Rxf6+ {[%emt 0:00:06]} Kg7 {[%emt 0:00:30]} 39. Ra6 Rc7 {[%emt 0:00:30]} 40. Rc6 {[%emt 0:01:00]} Rd7 {[%emt 0:00:30]} 41. Ke2 {[%emt 0:00:30]} f4 {[%emt 0:20:10]} 42. Kd3 f6 {[%emt 0:00:00]} 43. a5 {[%emt 0:00:01]} Kg6 {[%emt 0:00:00]} 44. b6 {[%emt 0:01:43]} axb6 {[%emt 0:00:00]} 45. axb6 {[%emt 0:00:01]} Re7 {[%emt 0:00:00]} 46. Rc5 {[%emt 0:01:33]} Rd7 {[%emt 0:00:00]} 47. Rb5 {[%emt 0:00:54]} Rb7 {[%emt 0:00:00]} 48. Kc3 {[%emt 0:00:05]} Kf5 {[%emt 0:00:00]} 49. f3 {[%emt 0:00:10]} Ke6 {[%emt 0:00:00]} 50. Kb4 {[%emt 0:00:14]} Rb8 {[%emt 0:00:00]} 51. b7 {[%emt 0:00:16]} 1-0

[Event "FIDE WCCC Open-12 2024"]
[Site "Montesilvano"]
[Date "2024.11.18"]
[Round "3.9"]
[White "Matejka, Simon"]
[Black "Petroff, Vlad"]
[Result "0-1"]
[ECO "B10"]
[WhiteElo "1924"]
[BlackElo "2079"]
[PlyCount "94"]
[EventDate "2024.11.18"]
[EventType "swiss"]
[EventCountry "ITA"]
[TimeControl "5400+30"]

1. e4 {[%emt 0:00:27]} c6 {[%emt 0:00:19]} 2. c4 {[%emt 0:00:12]} d5 {[%emt 0:00:30]} 3. cxd5 {[%emt 0:00:14]} cxd5 {[%emt 0:00:11]} 4. exd5 {[%emt 0:00:21]} Nf6 {[%emt 0:00:43]} 5. Nc3 {[%emt 0:00:50]} Nxd5 {[%emt 0:03:52]} 6. Nf3 {[%emt 0:00:57]} Nc6 {[%emt 0:05:16]} 7. Bb5 {[%emt 0:00:35]} a6 {[%emt 0:09:46]} 8. Bxc6+ {[%emt 0:02:40]} bxc6 {[%emt 0:00:05]} 9. O-O {[%emt 0:00:43]} e6 {[%emt 0:01:18]} 10. d4 {[%emt 0:02:00]} Be7 {[%emt 0:00:59]} 11. Ne5 {[%emt 0:04:57]} Bb7 {[%emt 0:04:31]} 12. Be3 {[%emt 0:01:14]} O-O {[%emt 0:00:20]} 13. Rc1 {[%emt 0:00:54]} c5 {[%emt 0:03:38]} 14. Ne2 {[%emt 0:06:14]} Nxe3 {[%emt 0:08:44]} 15. fxe3 {[%emt 0:00:37]} Bg5 {[%emt 0:03:55]} 16. Nf4 {[%emt 0:04:01]} cxd4 {[%emt 0:03:48]} 17. exd4 {[%emt 0:02:19]} Bxf4 {[%emt 0:10:26]} 18. Rxf4 {[%emt 0:00:56]} Qd5 {[%emt 0:00:34]} 19. Qf3 {[%emt 0:04:12]} Qxf3 {[%emt 0:02:07]} 20. Nxf3 {[%emt 0:00:50]} Rac8 {[%emt 0:00:20]} 21. Rc5 {[%emt 0:01:46]} Bd5 {[%emt 0:12:15]} 22. a3 {[%emt 0:03:52]} a5 {[%emt 0:03:09]} 23. Ne5 {[%emt 0:03:10]} f6 {[%emt 0:06:40]} 24. Nd7 {[%emt 0:05:29]} Rfd8 {[%emt 0:00:38]} 25. Nb6 {[%emt 0:00:43]} Rxc5 {[%emt 0:00:35]} 26. dxc5 {[%emt 0:00:02]} Bc6 {[%emt 0:00:47]} 27. Nc4 {[%emt 0:05:53]} e5 {[%emt 0:02:29]} 28. Rf1 {[%emt 0:01:31]} Bb5 {[%emt 0:02:15]} 29. Nxa5 {[%emt 0:05:01]} Bxf1 {[%emt 0:00:57]} 30. Kxf1 {[%emt 0:00:02]} Kf7 {[%emt 0:00:20]} 31. Ke2 {[%emt 0:01:49]} Ke6 {[%emt 0:00:30]} 32. b4 {[%emt 0:00:41]} Kd5 {[%emt 0:01:37]} 33. Kd3 {[%emt 0:13:01]} f5 {[%emt 0:01:53]} 34. Nc4 {[%emt 0:00:37]} e4+ {[%emt 0:02:32]} 35. Kc3 {[%emt 0:00:06]} f4 {[%emt 0:00:13]} 36. Nd6 {[%emt 0:02:07]} Ra8 {[%emt 0:02:52]} 37. Nc4 {[%emt 0:01:56]} Re8 {[%emt 0:01:24]} 38. Nd6 {[%emt 0:00:27]} Rf8 {[%emt 0:00:27]} 39. Kd2 {[%emt 0:00:54]} g5 {[%emt 0:01:22]} 40. a4 {[%emt 0:00:32]} Ra8 {[%emt 0:00:59]} 41. a5 {[%emt 0:00:17]} Rb8 {[%emt 0:00:29]} 42. b5 {[%emt 0:03:17]} e3+ {[%emt 0:00:25]} 43. Ke2 {[%emt 0:01:48]} Kxc5 {[%emt 0:00:10]} 44. Ne4+ {[%emt 0:00:05]} Kxb5 {[%emt 0:00:12]} 45. Nxg5 {[%emt 0:00:12]} Rg8 {[%emt 0:00:21]} 46. Nxh7 {[%emt 0:01:51]} Rxg2+ {[%emt 0:00:06]} 47. Ke1 {[%emt 0:00:05]} f3 {[%emt 0:00:06]} 0-1

[Event "FIDE WCCC Open-12 2024"]
[Site "Montesilvano"]
[Date "2024.11.18"]
[Round "3.10"]
[White "Belyaletdinov, Leonard"]
[Black "Filindash, Nikita"]
[Result "0-1"]
[ECO "C42"]
[WhiteElo "1903"]
[BlackElo "2076"]
[PlyCount "88"]
[EventDate "2024.11.18"]
[EventType "swiss"]
[EventCountry "ITA"]
[TimeControl "5400+30"]

1. e4 {[%emt 0:00:00]} e5 {[%emt 0:00:35]} 2. Nf3 {[%emt 0:00:10]} Nf6 {[%emt 0:00:06]} 3. Nc3 {[%emt 0:03:32]} Bb4 {[%emt 0:00:05]} 4. Bc4 {[%emt 0:00:37]} O-O {[%emt 0:03:32]} 5. O-O {[%emt 0:02:02]} d6 {[%emt 0:08:18]} 6. d3 {[%emt 0:00:15]} h6 {[%emt 0:01:50]} 7. h3 {[%emt 0:00:07]} c6 {[%emt 0:00:27]} 8. Bb3 {[%emt 0:02:48]} Nbd7 {[%emt 0:05:29]} 9. Nh2 {[%emt 0:03:28]} Nc5 {[%emt 0:00:33]} 10. f4 {[%emt 0:00:44]} Nxb3 {[%emt 0:01:22]} 11. axb3 {[%emt 0:00:30]} exf4 {[%emt 0:01:29]} 12. Bxf4 {[%emt 0:00:36]} Be6 {[%emt 0:04:12]} 13. Qf3 {[%emt 0:03:33]} Bc5+ {[%emt 0:15:04]} 14. Kh1 {[%emt 0:01:00]} Bd4 {[%emt 0:00:34]} 15. Rae1 {[%emt 0:04:40]} Be5 {[%emt 0:02:37]} 16. Ne2 {[%emt 0:00:50]} c5 {[%emt 0:02:06]} 17. Ng3 {[%emt 0:03:18]} Bxb2 {[%emt 0:07:14]} 18. Nf5 {[%emt 0:02:48]} Bxf5 {[%emt 0:04:00]} 19. exf5 {[%emt 0:00:07]} Qd7 {[%emt 0:01:11]} 20. Bg3 {[%emt 0:03:23]} Rfe8 {[%emt 0:01:39]} 21. Ng4 {[%emt 0:01:04]} Nxg4 {[%emt 0:01:54]} 22. Qxg4 {[%emt 0:00:21]} Bf6 {[%emt 0:07:43]} 23. Qf3 {[%emt 0:04:01]} d5 {[%emt 0:00:57]} 24. c4 {[%emt 0:01:22]} dxc4 {[%emt 0:03:39]} 25. dxc4 {[%emt 0:00:39]} Rxe1 {[%emt 0:00:17]} 26. Rxe1 {[%emt 0:00:06]} Rd8 {[%emt 0:00:14]} 27. Kh2 {[%emt 0:01:12]} b6 {[%emt 0:01:59]} 28. Re4 {[%emt 0:05:51]} Kh7 {[%emt 0:02:42]} 29. Qh5 {[%emt 0:00:50]} Qd3 {[%emt 0:02:49]} 30. Rg4 {[%emt 0:00:38]} Rd7 {[%emt 0:02:47]} 31. Bf4 {[%emt 0:00:23]} Qd1 {[%emt 0:02:35]} 32. h4 {[%emt 0:02:04]} a6 {[%emt 0:00:22]} 33. Bg3 {[%emt 0:04:10]} Rd4 {[%emt 0:03:00]} 34. Bf4 {[%emt 0:00:07]} Be5 {[%emt 0:04:24]} 35. Rxg7+ {[%emt 0:06:45]} Bxg7 {[%emt 0:00:15]} 36. Qxf7 {[%emt 0:00:02]} Qg4 {[%emt 0:00:11]} 37. Bg3 {[%emt 0:00:07]} Rd3 {[%emt 0:00:48]} 38. Be1 {[%emt 0:00:50]} Re3 {[%emt 0:01:00]} 39. Bf2 {[%emt 0:01:21]} Re5 {[%emt 0:04:11]} 40. f6 {[%emt 0:00:18]} Qf4+ {[%emt 0:01:46]} 41. Bg3 {[%emt 0:00:09]} Qxf6 {[%emt 0:00:05]} 42. Qd7 {[%emt 0:00:20]} Re7 {[%emt 0:00:27]} 43. Qd5 {[%emt 0:00:10]} Qe6 {[%emt 0:00:27]} 44. Qh5 {[%emt 0:00:31]} Be5 {[%emt 0:00:15]} 0-1

[Event "FIDE WCCC Open-12 2024"]
[Site "Montesilvano"]
[Date "2024.11.18"]
[Round "3.11"]
[White "Kleschevnikov, Arseny"]
[Black "Obidjonov, Oriyat"]
[Result "1/2-1/2"]
[ECO "E42"]
[WhiteElo "1893"]
[BlackElo "2074"]
[PlyCount "83"]
[EventDate "2024.11.18"]
[EventType "swiss"]
[EventCountry "ITA"]
[TimeControl "5400+30"]

1. d4 {[%emt 0:00:02]} Nf6 {[%emt 0:00:09]} 2. c4 {[%emt 0:00:08]} e6 {[%emt 0:00:02]} 3. Nc3 {[%emt 0:00:06]} Bb4 {[%emt 0:00:06]} 4. e3 {[%emt 0:00:04]} c5 {[%emt 0:00:05]} 5. Nge2 {[%emt 0:00:56]} d5 {[%emt 0:00:26]} 6. a3 {[%emt 0:00:07]} Bxc3+ {[%emt 0:00:12]} 7. Nxc3 {[%emt 0:00:03]} cxd4 {[%emt 0:00:05]} 8. exd4 {[%emt 0:00:05]} dxc4 {[%emt 0:00:04]} 9. Bxc4 {[%emt 0:02:18]} Nc6 {[%emt 0:01:17]} 10. Be3 {[%emt 0:04:49]} O-O {[%emt 0:01:31]} 11. O-O {[%emt 0:04:16]} b6 {[%emt 0:02:21]} 12. Ba2 {[%emt 0:14:35]} h6 {[%emt 0:09:21]} 13. Qd3 {[%emt 0:22:15]} Ne7 {[%emt 0:02:14]} 14. Rad1 {[%emt 0:02:36]} Bb7 {[%emt 0:01:42]} 15. Bf4 {[%emt 0:03:02]} Nfd5 {[%emt 0:02:25]} 16. Nxd5 {[%emt 0:05:49]} Bxd5 {[%emt 0:03:45]} 17. Bb1 {[%emt 0:00:08]} Ng6 {[%emt 0:00:23]} 18. Bg3 {[%emt 0:01:29]} Bb7 {[%emt 0:03:23]} 19. Rfe1 {[%emt 0:04:13]} Qd5 {[%emt 0:00:31]} 20. f3 {[%emt 0:00:18]} Rfd8 {[%emt 0:00:42]} 21. Qd2 {[%emt 0:08:49]} Nf8 {[%emt 0:02:06]} 22. Re5 {[%emt 0:02:02]} Qc4 {[%emt 0:02:06]} 23. Bf4 {[%emt 0:04:32]} Rd5 {[%emt 0:12:25]} 24. Rxd5 {[%emt 0:10:39]} Qxd5 {[%emt 0:00:11]} 25. Qf2 {[%emt 0:04:20]} Qh5 {[%emt 0:05:05]} 26. Qg3 {[%emt 0:01:28]} Rd8 {[%emt 0:00:19]} 27. h4 {[%emt 0:02:35]} Kh8 {[%emt 0:02:50]} 28. Be5 {[%emt 0:02:46]} f6 {[%emt 0:00:13]} 29. Bd6 {[%emt 0:00:00]} Qd5 {[%emt 0:00:25]} 30. Be7 {[%emt 0:00:00]} Re8 {[%emt 0:00:14]} 31. Bxf8 {[%emt 0:00:22]} Rxf8 {[%emt 0:00:02]} 32. Qg6 {[%emt 0:00:35]} f5 {[%emt 0:00:02]} 33. Qg3 {[%emt 0:00:23]} Qb3 {[%emt 0:00:20]} 34. Rd2 {[%emt 0:00:34]} Rc8 {[%emt 0:02:13]} 35. Bd3 {[%emt 0:00:26]} Bd5 {[%emt 0:06:36]} 36. Kh2 {[%emt 0:00:14]} Qa2 {[%emt 0:01:32]} 37. Qe5 {[%emt 0:00:37]} Qa1 {[%emt 0:00:46]} 38. Rc2 {[%emt 0:01:06]} Rxc2 {[%emt 0:03:41]} 39. Bxc2 {[%emt 0:00:03]} Qa2 {[%emt 0:38:10]} 40. h5 {[%emt 0:01:40]} Qc4 {[%emt 0:00:30]} 41. Qb8+ {[%emt 0:00:30]} Kh7 {[%emt 0:00:30]} 42. Qe8 {[%emt 0:00:30]} 1/2-1/2

[Event "FIDE WCCC Open-12 2024"]
[Site "Montesilvano"]
[Date "2024.11.18"]
[Round "3.12"]
[White "Karthi, Jashith"]
[Black "Huseynov, Ahmed"]
[Result "1/2-1/2"]
[ECO "E20"]
[WhiteElo "2073"]
[BlackElo "1886"]
[PlyCount "55"]
[EventDate "2024.11.18"]
[EventType "swiss"]
[EventCountry "ITA"]
[TimeControl "5400+30"]

1. d4 {[%emt 0:00:04]} Nf6 {[%emt 0:00:07]} 2. c4 {[%emt 0:00:04]} e6 {[%emt 0:00:05]} 3. Nc3 {[%emt 0:00:11]} Bb4 {[%emt 0:00:05]} 4. f3 {[%emt 0:00:04]} O-O {[%emt 0:00:15]} 5. e4 {[%emt 0:00:30]} d5 {[%emt 0:00:08]} 6. e5 {[%emt 0:01:47]} Nfd7 {[%emt 0:00:12]} 7. cxd5 {[%emt 0:00:06]} exd5 {[%emt 0:00:08]} 8. f4 {[%emt 0:06:03]} c5 {[%emt 0:05:35]} 9. Be3 {[%emt 0:07:43]} Nc6 {[%emt 0:16:44]} 10. Nf3 {[%emt 0:00:41]} c4 {[%emt 0:08:44]} 11. Be2 {[%emt 0:01:52]} Re8 {[%emt 0:01:11]} 12. O-O {[%emt 0:00:42]} Nf8 {[%emt 0:01:36]} 13. Bf2 {[%emt 0:04:15]} Ng6 {[%emt 0:12:51]} 14. Qc1 {[%emt 0:08:13]} Bf5 {[%emt 0:03:36]} 15. Bd1 {[%emt 0:04:44]} Qd7 {[%emt 0:06:47]} 16. Bg3 {[%emt 0:18:40]} a6 {[%emt 0:07:21]} 17. Bc2 {[%emt 0:02:14]} Nce7 {[%emt 0:00:54]} 18. Bxf5 {[%emt 0:01:01]} Qxf5 {[%emt 0:04:57]} 19. Nd1 {[%emt 0:02:46]} Rac8 {[%emt 0:05:24]} 20. Ne3 {[%emt 0:01:29]} Qe4 {[%emt 0:02:12]} 21. Nc2 {[%emt 0:00:51]} Ba5 {[%emt 0:00:39]} 22. Ng5 {[%emt 0:01:57]} Qe2 {[%emt 0:10:23]} 23. Rf2 {[%emt 0:04:41]} Qd3 {[%emt 0:01:22]} 24. Rf3 {[%emt 0:03:23]} Qe2 {[%emt 0:00:50]} 25. Rf2 {[%emt 0:06:52]} Qd3 {[%emt 0:00:07]} 26. Rf3 {[%emt 0:09:19]} Qe2 {[%emt 0:00:30]} 27. Re3 {[%emt 0:05:08]} Qh5 {[%emt 0:02:51]} 28. Ra3 {[%emt 0:02:15]} 1/2-1/2

[Event "FIDE WCCC Open-12 2024"]
[Site "Montesilvano"]
[Date "2024.11.18"]
[Round "3.13"]
[White "Fadeev, Justin Michael"]
[Black "Baturin-Vinogradov, Miroslav"]
[Result "0-1"]
[ECO "C93"]
[WhiteElo "1878"]
[BlackElo "2048"]
[PlyCount "136"]
[EventDate "2024.11.18"]
[EventType "swiss"]
[EventCountry "ITA"]
[TimeControl "5400+30"]

1. e4 {[%emt 0:00:01]} e5 {[%emt 0:00:29]} 2. Nf3 {[%emt 0:00:07]} Nc6 {[%emt 0:00:37]} 3. Bb5 {[%emt 0:00:23]} a6 {[%emt 0:00:37]} 4. Ba4 {[%emt 0:00:07]} Nf6 {[%emt 0:00:33]} 5. O-O {[%emt 0:00:18]} Be7 {[%emt 0:00:38]} 6. Re1 {[%emt 0:00:40]} b5 {[%emt 0:00:40]} 7. Bb3 {[%emt 0:00:05]} d6 {[%emt 0:00:40]} 8. c3 {[%emt 0:01:08]} O-O {[%emt 0:03:23]} 9. h3 {[%emt 0:00:15]} Bb7 {[%emt 0:01:08]} 10. d4 {[%emt 0:01:15]} Re8 {[%emt 0:01:22]} 11. Ng5 {[%emt 0:00:41]} Rf8 {[%emt 0:00:11]} 12. Nf3 {[%emt 0:00:10]} Re8 {[%emt 0:00:55]} 13. Ng5 {[%emt 0:00:05]} Rf8 {[%emt 0:00:06]} 14. Nf3 {[%emt 0:00:05]} h6 {[%emt 0:03:20]} 15. Nbd2 {[%emt 0:00:11]} Re8 {[%emt 0:00:57]} 16. Nf1 {[%emt 0:00:10]} Bf8 {[%emt 0:02:34]} 17. Ng3 {[%emt 0:00:17]} exd4 {[%emt 0:06:05]} 18. cxd4 {[%emt 0:01:02]} Na5 {[%emt 0:07:12]} 19. Bc2 {[%emt 0:03:24]} c5 {[%emt 0:05:57]} 20. d5 {[%emt 0:04:51]} g6 {[%emt 0:08:07]} 21. b3 {[%emt 0:06:22]} Bg7 {[%emt 0:03:07]} 22. Rb1 {[%emt 0:05:54]} Rc8 {[%emt 0:10:08]} 23. Bb2 {[%emt 0:10:24]} Nd7 {[%emt 0:04:51]} 24. Bxg7 {[%emt 0:05:52]} Kxg7 {[%emt 0:00:05]} 25. Nd2 {[%emt 0:01:22]} Rc7 {[%emt 0:06:38]} 26. f4 {[%emt 0:06:29]} Nf6 {[%emt 0:04:50]} 27. Qf3 {[%emt 0:08:14]} b4 {[%emt 0:03:31]} 28. Bd3 {[%emt 0:04:07]} Rce7 {[%emt 0:01:05]} 29. Re2 {[%emt 0:05:38]} h5 {[%emt 0:05:06]} 30. Rbe1 {[%emt 0:05:47]} Qc7 {[%emt 0:02:37]} 31. Nc4 {[%emt 0:10:03]} Nxc4 {[%emt 0:01:48]} 32. Bxc4 {[%emt 0:00:12]} Bc8 {[%emt 0:03:30]} 33. Qd3 {[%emt 0:03:53]} h4 {[%emt 0:01:40]} 34. Nf1 {[%emt 0:17:58]} Rxe4 {[%emt 0:03:44]} 35. Rxe4 {[%emt 0:00:00]} Rxe4 {[%emt 0:00:09]} 36. Rxe4 {[%emt 0:00:00]} Bf5 {[%emt 0:00:07]} 37. Nd2 {[%emt 0:00:00]} Nxe4 {[%emt 0:00:07]} 38. Nxe4 {[%emt 0:00:00]} Qe7 {[%emt 0:00:09]} 39. Bxa6 {[%emt 0:00:00]} Qxe4 {[%emt 0:00:36]} 40. Qd2 {[%emt 0:00:00]} Qc2 {[%emt 0:01:37]} 41. Qe1 {[%emt 0:00:00]} Qxa2 {[%emt 0:01:48]} 42. Bc4 {[%emt 0:00:00]} Qb1 {[%emt 0:03:24]} 43. Qxb1 {[%emt 0:00:00]} Bxb1 {[%emt 0:00:02]} 44. Kf2 {[%emt 0:00:00]} Be4 {[%emt 0:01:57]} 45. g3 {[%emt 0:00:00]} hxg3+ {[%emt 0:00:09]} 46. Kxg3 {[%emt 0:00:00]} Kf6 {[%emt 0:00:37]} 47. Kg4 {[%emt 0:00:45]} Bh1 {[%emt 0:00:49]} 48. Kg3 {[%emt 0:03:05]} Be4 {[%emt 0:01:37]} 49. Kg4 {[%emt 0:00:09]} Bf5+ {[%emt 0:01:39]} 50. Kh4 {[%emt 0:01:45]} Bc2 {[%emt 0:00:36]} 51. Kg4 {[%emt 0:00:26]} Be4 {[%emt 0:00:43]} 52. Kh4 {[%emt 0:01:47]} Kf5 {[%emt 0:00:00]} 53. Kg3 {[%emt 0:00:16]} f6 {[%emt 0:00:04]} 54. h4 {[%emt 0:00:26]} Bc2 {[%emt 0:03:09]} 55. Bf1 {[%emt 0:01:03]} Ke4 {[%emt 0:00:00]} 56. Bc4 {[%emt 0:00:44]} Kd4 {[%emt 0:00:00]} 57. Kf2 {[%emt 0:00:21]} Be4 {[%emt 0:00:20]} 58. Ke2 {[%emt 0:00:31]} Bxd5 {[%emt 0:00:49]} 59. Bxd5 {[%emt 0:00:07]} Kxd5 {[%emt 0:00:06]} 60. f5 {[%emt 0:00:03]} gxf5 {[%emt 0:00:21]} 61. Ke3 {[%emt 0:00:47]} Ke6 {[%emt 0:00:08]} 62. Kd3 {[%emt 0:00:35]} d5 {[%emt 0:00:12]} 63. h5 {[%emt 0:00:08]} Kf7 {[%emt 0:00:09]} 64. Ke3 {[%emt 0:00:07]} c4 {[%emt 0:00:09]} 65. Kd4 {[%emt 0:00:37]} cxb3 {[%emt 0:00:24]} 66. Kd3 {[%emt 0:00:03]} f4 {[%emt 0:00:07]} 67. h6 {[%emt 0:00:03]} Kg6 {[%emt 0:00:04]} 68. h7 {[%emt 0:00:03]} Kxh7 {[%emt 0:00:06]} 0-1

[Event "FIDE WCCC Open-12 2024"]
[Site "Montesilvano"]
[Date "2024.11.18"]
[Round "3.14"]
[White "Bulgak, Damir"]
[Black "Berdashkevich, Makar"]
[Result "1-0"]
[ECO "E06"]
[WhiteElo "2044"]
[BlackElo "1848"]
[PlyCount "123"]
[EventDate "2024.11.18"]
[EventType "swiss"]
[EventCountry "ITA"]
[TimeControl "5400+30"]

1. d4 {[%emt 0:00:30]} Nf6 {[%emt 0:01:02]} 2. c4 {[%emt 0:00:33]} e6 {[%emt 0:00:11]} 3. Nf3 {[%emt 0:00:47]} b6 {[%emt 0:00:42]} 4. g3 {[%emt 0:00:49]} c6 {[%emt 0:00:25]} 5. Bg2 {[%emt 0:01:33]} d5 {[%emt 0:01:03]} 6. Qc2 {[%emt 0:02:28]} Be7 {[%emt 0:07:01]} 7. O-O {[%emt 0:00:26]} O-O {[%emt 0:13:16]} 8. Nbd2 {[%emt 0:00:15]} c5 {[%emt 0:05:00]} 9. dxc5 {[%emt 0:08:49]} bxc5 {[%emt 0:01:58]} 10. e4 {[%emt 0:14:50]} Nc6 {[%emt 1:04:52]} 11. cxd5 {[%emt 0:07:10]} exd5 {[%emt 0:00:00]} 12. exd5 {[%emt 0:00:46]} Nb4 {[%emt 0:00:00]} 13. Qb3 {[%emt 0:05:02]} Ba6 {[%emt 0:00:00]} 14. Nc4 {[%emt 0:02:42]} Nbxd5 {[%emt 0:00:00]} 15. Nfe5 {[%emt 0:01:33]} Rb8 {[%emt 0:00:00]} 16. Qa3 {[%emt 0:50:17]} Bxc4 {[%emt 0:00:00]} 17. Nxc4 {[%emt 0:00:00]} Qc7 {[%emt 0:00:00]} 18. Rd1 {[%emt 0:00:00]} Rfd8 {[%emt 0:00:00]} 19. Bd2 {[%emt 0:00:00]} Bf8 {[%emt 0:00:00]} 20. Rac1 {[%emt 0:00:00]} g6 {[%emt 0:00:00]} 21. b3 {[%emt 0:00:00]} h6 {[%emt 0:00:00]} 22. h4 {[%emt 0:00:00]} Kh7 {[%emt 0:00:50]} 23. Qa6 {[%emt 0:00:00]} Bg7 {[%emt 0:02:04]} 24. Bf3 {[%emt 0:00:00]} h5 {[%emt 0:01:06]} 25. Na5 {[%emt 0:00:00]} Nb4 {[%emt 0:01:59]} 26. Bxb4 {[%emt 0:00:00]} Rxd1+ {[%emt 0:00:45]} 27. Rxd1 {[%emt 0:00:00]} cxb4 {[%emt 0:00:42]} 28. Nc6 {[%emt 0:00:00]} Rb6 {[%emt 0:00:30]} 29. Qc4 {[%emt 0:00:00]} Ng4 {[%emt 0:00:44]} 30. Re1 {[%emt 0:00:00]} Bf6 {[%emt 0:00:34]} 31. Qd5 {[%emt 0:00:00]} Kg7 {[%emt 0:00:35]} 32. Re8 {[%emt 0:00:00]} a5 {[%emt 0:00:36]} 33. Qc5 {[%emt 0:00:00]} Kh6 {[%emt 0:00:23]} 34. Kg2 {[%emt 0:00:00]} Kh7 {[%emt 0:00:38]} 35. Qd5 {[%emt 0:00:00]} Kg7 {[%emt 0:00:24]} 36. Qc5 {[%emt 0:00:00]} Kh6 {[%emt 0:00:13]} 37. Bd5 {[%emt 0:00:00]} Kh7 {[%emt 0:00:43]} 38. Ra8 {[%emt 0:01:53]} Ne5 {[%emt 0:01:14]} 39. Ra7 {[%emt 0:00:24]} Nd7 {[%emt 0:00:00]} 40. Rxc7 {[%emt 0:01:22]} Nxc5 {[%emt 0:00:00]} 41. Nxa5 {[%emt 0:00:46]} Nd3 {[%emt 0:00:33]} 42. Bxf7 {[%emt 0:00:34]} Be5 {[%emt 0:00:24]} 43. Re7 {[%emt 0:00:22]} Bf6 {[%emt 0:00:38]} 44. Rc7 {[%emt 0:00:50]} Kh6 {[%emt 0:00:20]} 45. Nc6 {[%emt 0:00:49]} Ne5 {[%emt 0:00:34]} 46. Bg8 {[%emt 0:00:06]} g5 {[%emt 0:00:14]} 47. hxg5+ {[%emt 0:00:06]} Kg6 {[%emt 0:00:12]} 48. Bh7+ {[%emt 0:00:25]} Kxg5 {[%emt 0:00:05]} 49. f4+ {[%emt 0:00:05]} Kg4 {[%emt 0:00:05]} 50. Nxe5+ {[%emt 0:00:34]} Bxe5 {[%emt 0:00:14]} 51. fxe5 {[%emt 0:00:03]} Kg5 {[%emt 0:00:09]} 52. Kf3 {[%emt 0:00:23]} h4 {[%emt 0:00:08]} 53. gxh4+ {[%emt 0:01:51]} Kxh4 {[%emt 0:00:06]} 54. Bf5 {[%emt 0:00:09]} Kg5 {[%emt 0:00:09]} 55. Ke4 {[%emt 0:00:08]} Ra6 {[%emt 0:00:04]} 56. Rg7+ {[%emt 0:00:28]} Kh6 {[%emt 0:00:05]} 57. Rg6+ {[%emt 0:00:07]} Rxg6 {[%emt 0:00:05]} 58. Bxg6 {[%emt 0:00:03]} Kxg6 {[%emt 0:00:06]} 59. Kd5 {[%emt 0:00:03]} Kf7 {[%emt 0:00:08]} 60. Kd6 {[%emt 0:00:06]} Ke8 {[%emt 0:00:04]} 61. Kd5 {[%emt 0:10:53]} Ke7 {[%emt 0:07:07]} 62. Ke4 {[%emt 0:00:30] Kd6} 1-0

[Event "FIDE WCCC Open-12 2024"]
[Site "Montesilvano"]
[Date "2024.11.18"]
[Round "3.15"]
[White "Zhang, Haoxuan"]
[Black "Smirnov, Mark"]
[Result "0-1"]
[ECO "C64"]
[WhiteElo "1951"]
[BlackElo "2300"]
[PlyCount "64"]
[EventDate "2024.11.18"]
[EventType "swiss"]
[EventCountry "ITA"]
[TimeControl "5400+30"]

1. e4 {[%emt 0:00:13]} e5 {[%emt 0:00:13]} 2. Nf3 {[%emt 0:00:08]} Nc6 {[%emt 0:00:05]} 3. Bb5 {[%emt 0:00:15]} a6 {[%emt 0:00:06]} 4. Ba4 {[%emt 0:00:13]} Bc5 {[%emt 0:00:06]} 5. O-O {[%emt 0:01:21]} Nge7 {[%emt 0:00:36]} 6. c3 {[%emt 0:01:58]} Ba7 {[%emt 0:00:49]} 7. Re1 {[%emt 0:01:34]} O-O {[%emt 0:04:51]} 8. h3 {[%emt 0:03:14]} d5 {[%emt 0:09:08]} 9. exd5 {[%emt 0:06:05]} Qxd5 {[%emt 0:01:32]} 10. Bb3 {[%emt 0:03:25]} Qd6 {[%emt 0:02:30]} 11. Qe2 {[%emt 0:22:18]} Qg6 {[%emt 0:16:12]} 12. Kh1 {[%emt 0:02:23]} e4 {[%emt 0:02:56]} 13. Nh2 {[%emt 0:00:57]} Bf5 {[%emt 0:08:18]} 14. g4 {[%emt 0:03:45]} Bd7 {[%emt 0:03:45]} 15. Qxe4 {[%emt 0:01:15]} Bxf2 {[%emt 0:08:47]} 16. Qxg6 {[%emt 0:00:09]} Nxg6 {[%emt 0:00:20]} 17. Rf1 {[%emt 0:01:08]} Bg3 {[%emt 0:01:42]} 18. d4 {[%emt 0:00:41]} Kh8 {[%emt 0:05:04]} 19. Bc2 {[%emt 0:06:43]} Nce7 {[%emt 0:02:19]} 20. Nd2 {[%emt 0:04:19]} f5 {[%emt 0:02:20]} 21. gxf5 {[%emt 0:02:12]} Nxf5 {[%emt 0:00:48]} 22. Ne4 {[%emt 0:06:10]} Rae8 {[%emt 0:03:35]} 23. Kg1 {[%emt 0:00:54]} Bxh2+ {[%emt 0:08:03]} 24. Kxh2 {[%emt 0:00:16]} Bc6 {[%emt 0:04:23]} 25. Nf2 {[%emt 0:02:11]} Nfh4 {[%emt 0:05:17]} 26. Bxg6 {[%emt 0:01:11]} Nxg6 {[%emt 0:02:09]} 27. c4 {[%emt 0:01:24]} Re2 {[%emt 0:01:19]} 28. Kg1 {[%emt 0:00:06]} Nh4 {[%emt 0:00:35]} 29. d5 {[%emt 0:00:09]} Bd7 {[%emt 0:00:02]} 30. b3 {[%emt 0:03:41]} Bxh3 {[%emt 0:00:32]} 31. Ba3 {[%emt 0:00:07]} Nf3+ {[%emt 0:00:10]} 32. Kh1 {[%emt 0:00:03]} Rf5 {[%emt 0:07:58]} 0-1